Cogmind - Beta 9.4 @@@ ROGUE MODE // 2020.02.01 @ 19:18:22 Player: PabloBot Result: Destroyed by G-47 Trooper with Particle Gun Performance ------------- Evolutions (0) 0 Regions Visited (2) 400 Robots Destroyed (9) 45 Value Destroyed (324) 324 Prototype IDs (0) 0 Alien Tech Used (0) 0 Bonus (0) 0 TOTAL SCORE: 769 Bonus ------- None Cogmind --------- Core Integrity 0/250 Matter 293/300 Energy 99/100 System Corruption 0% Temperature Cool (9) Movement Core (50) Location -10/Mines Parts ------- > --- POWER (1) -------- (None) > --- PROPULSION (2) --- (None) > --- UTILITY (2) ------ (None) > --- WEAPON (2) ------- (None) > --- INVENTORY (4) ---- Aluminum Leg Large Storage Unit Large Storage Unit Peak State ------------ > --- POWER ------------ Light Ion Engine > --- PROPULSION ------- Aluminum Leg Aluminum Leg > --- UTILITY ---------- Heat Sink Heat Sink > --- WEAPON ----------- Particle Gun Assault Rifle > --- INVENTORY -------- Ion Engine Aluminum Leg EM Pulse Gun [Rating: 8] Favorites ----------- Power Light Ion Engine Engine Light Ion Engine Propulsion Aluminum Leg Leg Aluminum Leg Utility Heat Sink Device Heat Sink Weapon Assault Rifle Energy Gun EM Pulse Gun Ballistic Gun Assault Rifle Build | -11 -10 -10 ------- Run | Scr Mat Min Slots Evolved . | . . . Power . | . . . Propulsion . | . . . Utility . | . . . Weapon . | . . . Parts Attached 18 | 5 4 9 Power 2 | 1 . 1 Engine 2 | 1 . 1 Core . | . . . Reactor . | . . . Propulsion 6 | 2 . 4 Treads . | . . . Leg 6 | 2 . 4 Wheel . | . . . Hover . | . . . Flight . | . . . Utility 3 | . 2 1 Device 3 | . 2 1 Storage . | . . . Processor . | . . . Hackware . | . . . Protection . | . . . Artifact . | . . . Weapon 7 | 2 2 3 Energy Gun 5 | 1 1 3 Energy Cannon . | . . . Ballistic Gun 2 | 1 1 . Ballistic Cannon . | . . . Launcher . | . . . Special Weapon . | . . . Impact Weapon . | . . . Slashing Weapon . | . . . Piercing Weapon . | . . . Special Melee Weapon . | . . . Unidentified Prototypes . | . . . Parts Lost 12 | . . 12 Power 2 | . . 2 Propulsion 3 | . . 3 Utility 2 | . . 2 Weapon 5 | . . 5 Highest Loss Streak 7 | . . 7 Average Slot Usage (%) 77 | . 88 49 Engine 11 | . 14 4 Leg 25 | . 28 19 Device 15 | . 16 14 Energy Gun 11 | . 14 6 Ballistic Gun 11 | . 14 4 Naked Turns 11 | . . 11 Heaviest Build 10 | 7 10 9 Greatest Support 20 | 20 20 20 Greatest Overweight (x) . | . . . Average Overweight (x) . | . . . Largest Inventory Capacity 4 | 4 4 4 Average Capacity 4 | 4 4 4 Most Carried 4 | 1 4 4 Average Carried 2 | . 2 3 Final Capacity 4 | 4 4 4 Final Carried 4 | 1 4 3 Class Distribution -------------------- 94% | Mutant 5% | Scavenger-Mutant Dominant Class ---------------- Mutant | -10/Materials Mutant | -10/Mines Resources | -11 -10 -10 ----------- Run | Scr Mat Min Matter Collected 424 | 265 44 115 Remotely . | . . . Salvage Created 363 | 50 155 158 Parts 21 | . 16 5 Haulers Intercepted . | . . . Recyclers Shooed 1 | . . 1 Parts Field Recycled . | . . . Retrieved Matter . | . . . Parts Self-Destructed . | . . . Prevented . | . . . Kills | -11 -10 -10 ------- Run | Scr Mat Min Combat Hostiles Destroyed 8 | 1 3 4 Guns 8 | 1 3 4 Classes Destroyed 2 | 1 1 . Watcher 1 | . 1 . Grunt 8 | 1 3 4 Best Kill Streak 2 | 1 2 2 Combat Bots Only 2 | 1 2 2 Max Kills in Single Turn 1 | 1 1 1 Gunslinging . | . . . Exploded . | . . . Melee . | . . . Uniques/NPCs Destroyed . | . . . Combat | -11 -10 -10 -------- Run | Scr Mat Min Damage Taken 1137 | 56 81 1000 Core 261 | 34 6 221 Absorbed by Shields . | . . . Core Remaining (%) 86 | 86 . . Volleys Fired 62 | 5 8 49 Largest 2 | 2 2 2 Hottest 105 | 60 60 105 Shots Fired 81 | 10 16 55 Gun 81 | 10 16 55 Cannon . | . . . Launcher . | . . . Special . | . . . Kinetic 37 | 5 8 24 Thermal 31 | . . 31 Explosive . | . . . Electromagnetic 13 | 5 8 . Robot Hit Streak 13 | 7 13 11 Robot Miss Streak 2 | 1 2 2 Penetration Max . | . . . Secondary Targets . | . . . Shots Hit Robots 58 | 8 10 40 Core Hits 20 | 2 7 11 Critical Hits . | . . . Critical Kills . | . . . Critical Parts Destroyed . | . . . Melee Attacks . | . . . Impact . | . . . Slashing . | . . . Piercing . | . . . Sneak Attacks . | . . . Combat Hostiles . | . . . Follow-up Attacks . | . . . Damage Inflicted 771 | 133 127 511 Guns 771 | 133 127 511 Cannons . | . . . Explosions . | . . . Melee . | . . . Ramming . | . . . Kinetic 336 | 62 68 206 Thermal 305 | . . 305 Explosive . | . . . Electromagnetic 130 | 71 59 . Impact . | . . . Slashing . | . . . Piercing . | . . . Highest Corruption . | . . . Average Corruption . | . . . Corruption Purged . | . . . Overload Shots . | . . . Overflow Damage . | . . . Projectiles . | . . . Explosions . | . . . Melee . | . . . Knockbacks . | . . . Impact . | . . . Kinetic . | . . . Secondary . | . . . Self-Inflicted Damage . | . . . Shots . | . . . Rammed . | . . . Targets Rammed . | . . . Kicked . | . . . Crushed . | . . . Highest Temperature 162 | 50 . 162 Average Temperature 77 | 37 . 93 Received Heat Transfer 630 | 30 33 567 Siege Activations . | . . . Robots Corrupted . | . . . Combat Hostiles . | . . . Parts Fried 1 | 1 . . Impact Corruptions . | . . . Robots Melted . | . . . Combat Hostiles . | . . . Parts Melted 1 | . . 1 Heat Transferred 756 | . . 756 Parts Sabotaged . | . . . Parts Stolen . | . . . Parts Stripped . | . . . Power Chain Reactions . | . . . Missiles Intercepted . | . . . Alert | -11 -10 -10 ------- Run | Scr Mat Min Peak Influence 145 | 20 145 60 Average Influence 37 | 2 43 35 Maximum Alert Level . | . . . Low Security (%) 100 | 100 100 100 Level 1 . | . . . Level 2 . | . . . Level 3 . | . . . Level 4 . | . . . Level 5 . | . . . High Security . | . . . Max Security . | . . . Squads Dispatched 1 | . 1 . Investigation . | . . . Extermination . | . . . Reinforcement 1 | . 1 . Assault . | . . . Garrison . | . . . Intercept . | . . . Construction Impeded . | . . . Haulers Reinforced . | . . . Stealth | -11 -10 -10 --------- Run | Scr Mat Min Distress Signals . | . . . Communications Jammed . | . . . Distress Signals . | . . . Times Spotted 18 | 1 9 8 Peak Tracking Total 4 | 1 4 2 Tactical Retreats 2 | . 1 1 Traps | -11 -10 -10 ------- Run | Scr Mat Min Traps Triggered . | . . . Indirectly . | . . . Trap Hack Attempts . | . . . Triggered . | . . . Disarmed . | . . . Reprogrammed . | . . . Reused . | . . . Traps Extracted . | . . . Installed . | . . . Triggered . | . . . Machines | -11 -10 -10 ---------- Run | Scr Mat Min Machines Disabled 1 | . 1 . Max in Single Turn 1 | . 1 . Machines Sabotaged . | . . . Garrisons Compromised . | . . . Overloaded Fab Kills . | . . . Fab Network Shutdowns . | . . . Hacking | -11 -10 -10 --------- Run | Scr Mat Min Machines Accessed . | . . . Terminals . | . . . Fabricators . | . . . Repair Stations . | . . . Recycling Units . | . . . Scanalyzers . | . . . Garrison Access . | . . . Total Hacks . | . . . Successful . | . . . Failed . | . . . Catastrophic . | . . . Database Lockouts . | . . . Manual . | . . . Terminals . | . . . Fabricators . | . . . Repair Stations . | . . . Recycling Units . | . . . Scanalyzers . | . . . Garrison Access . | . . . Terminal Hacks . | . . . Fabricator Hacks . | . . . Repair Station Hacks . | . . . Recycling Unit Hacks . | . . . Scanalyzer . | . . . Garrison Access Hacks . | . . . Unauthorized Hacks . | . . . Terminals . | . . . Fabricators . | . . . Repair Stations . | . . . Recycling Units . | . . . Scanalyzers . | . . . Garrison Access . | . . . Data Cores Recovered . | . . . Used . | . . . Hacking Detections . | . . . Full Trace Events . | . . . Feedback Events . | . . . Feedback Blocked . | . . . Robot Schematics Acquired . | . . . Robots Built . | . . . Matter . | . . . Time . | . . . Total Robot Build Rating . | . . . Part Schematics Acquired . | . . . Parts Built . | . . . Matter . | . . . Time . | . . . Total Part Build Rating . | . . . Parts Repaired . | . . . Time . | . . . Parts Recycled . | . . . Recycled Matter . | . . . Retrieved Matter . | . . . Retrieved Components . | . . . Parts Scanalyzed . | . . . Part Schematics Acquired . | . . . Parts Damaged . | . . . Bothacking | -11 -10 -10 ------------ Run | Scr Mat Min Used RIF Installer . | . . . Robots Hacked . | . . . Non-combat . | . . . Combat . | . . . Robot Hacks Applied . | . . . Relay Couplers Released . | . . . Robots Rewired . | . . . Allies Hacked . | . . . Hacks Repelled . | . . . Allies | -11 -10 -10 -------- Run | Scr Mat Min Total Allies . | . . . Largest Group . | . . . Highest-Rated Group . | . . . Highest-Rated Ally . | . . . Total Orders . | . . . Ally Attacks . | . . . Total Damage . | . . . Kills . | . . . Allies Corrupted . | . . . Allies Melted . | . . . Intel | -11 -10 -10 ------- Run | Scr Mat Min Robot Analysis Total . | . . . Derelict Logs Recovered . | . . . Drone Launches . | . . . Drone Recoveries . | . . . Exploration | -11 -10 -10 ------------- Run | Scr Mat Min Turns Passed 909 | 97 587 225 Spaces Moved 390 | 72 237 81 Core 20 | 17 . 3 Treads . | . . . Legs 370 | 55 237 78 Wheels . | . . . Hover . | . . . Flight . | . . . Fastest Speed 50 | 50 120 50 Average Speed 116 | 103 120 117 Slowest Speed 120 | 120 120 120 Overloaded Moves . | . . . Propulsion Burnouts . | . . . Robots Hopped . | . . . Cave-ins Triggered . | . . . Exploration Rate (%) 19 | 6 38 13 Regions Visited 2 Branch Regions 1 Pre-discovered Areas . | . . . Known Exits Taken . | . . . Unknown Exits Taken 2 | 1 1 . Scrap Searched 1 | . . 1 Spaces Dug . | . . . Terrain Destroyed . | . . . Melee . | . . . Projectile . | . . . AOE . | . . . Actions | -11 -10 -10 --------- Run | Scr Mat Min Total 759 | 82 522 155 Wait 279 | . 267 12 Move 388 | 71 236 81 Hop . | . . . Pick Up 7 | 1 5 1 Fast Attach 10 | 5 2 3 Attach 2 | . . 2 Detach . | . . . Swap 6 | . 2 4 Drop 5 | . 2 3 Fire 62 | 5 8 49 Melee . | . . . Ram . | . . . Kick . | . . . Crush . | . . . Escape Stasis . | . . . Rewire . | . . . Trap . | . . . Miscellaneous . | . . . Route ------- -11/Scrapyard -10/Materials (discovered 2 exits: [*Mat] / [*Min]) -10/Mines History --------- Turn | Location | Event 2 | -11/Scrapyard | Met Revision 17 66 | -11/Scrapyard | Discovered new exit (range 8) 98 | -11/Scrapyard | Entered Materials 303 | -10/Materials | Build established: Mutant 619 | -10/Materials | Discovered new exit (range 11) 665 | -10/Materials | Discovered new exit (range 16) 685 | -10/Materials | Entered Mines 766 | -10/Mines | Core integrity fell below 50% 793 | -10/Mines | Lost 3 parts (1n1u1w) 855 | -10/Mines | Core integrity fell below 20% 910 | -10/Mines | Destroyed by G-47 Trooper with Particle Gun Last Messages --------------- 00804_ G-47 Trooper destroyed. 00806_ Ion Engine destroyed. 00814_ G-34 Mercenary destroyed. 00826_ Acquired Aluminum Leg. 00832_ Med. Laser destroyed. 00833_ Acquired Particle Gun. 00834_ Imp. Heat Sink destroyed. 00838_ Acquired Sml. Laser. 00850_ Particle Gun destroyed. 00861_ K-01 Serf collects debris. 00864_ Aluminum Leg destroyed. 00865_ Ion Engine melted. 00865_ G-34 Mercenary destroyed. 00866_ K-01 Serf collects debris. 00869_ Sml. Laser destroyed. 00871_ R-06 Scavenger collects Aluminum Leg. 00873_ K-01 Serf collects debris. 00875_ Acquired 8 matter. 00876_ K-01 Serf collects debris. 00899_ Aluminum Leg destroyed. Map ----- +----------------------------------------------------+ | ????# """ #???????????????????? | | ????# """ #???????????????????? | | ????# #???????????????????? | | ????# #???????????????????? | | ????# #???????????????????? | | ????#### ######???????????????????? | | ???????# #????????????????????????? | | ???????# #????????????????????????? | | ???????# ##########???????????????? | | ???????# #???????????????? | | ???????########## #???????????????? | | ????????????????# #???????????????? | | ????????????????# ####????????????? | | ???#####????????# #????????????? | | ??## #######?#### #????????????? | | ??# #????# #????????????? | | ??# #### #????# #????????????? | | ??## ##?# ######%#????????????? | | ???### #?# ## !% #????????????? | | ????## ###!# ##???????????? | | ???## % #???????????? | | ???# ###### #???????????? | | ???# #????# #???????????? | | ???# """ #????## % ????????? | | ???# """g##????### ######???????? | | ???## """ @#??????####????????????? | | ????# ##?????????????????????? | | ????# #?????????????????????? | | ????##### #?????????????????????? | | ????????#####?????????????????????? | | ??????????????????????????????????? | | ??????????????????????????????????? | | ??????????????????????????????????? | | ??????????????????????????????????? | | | | | | | | | | | | | | | | | | | | | | | | | | | | | | | | | +----------------------------------------------------+ Best States ------------- Heat Dissipation 49 Energy Generation 10 Energy Capacity 250 Matter Stores 300 Matter Capacity 300 Sight Range 16 Terrain Scan Density 10 Evasion (%) 50 Item Schematics ----------------- None Robot Schematics ------------------ None Fabricated ------------ Nothing Alien Tech Used ----------------- None Achievements -------------- None Challenges ------------ None Game ------ Seed WaveGravityCapacitor Manual? 0 Play Time 00:11:04 Cumulative 10.3 hours Start 2020.02.01 @ 19:06:38 End 2020.02.01 @ 19:18:22 Sessions 1 Manual Loads 0 Difficulty Rogue Special Mode None Game No. 8 Rogue 8 Adventurer 0 Explorer 0 Win Type - Total 0 Types 0/0/0/0/0/0/0 Lore% 8 Gallery% 13 Achievement% 12 Wizard Run 0 Options --------- ASCII 0 Keyboard 0 Movement Numpad Keybinds 0 Fullscreen 1 Font 12/Terminus Map View 83x54 Tactical HUD 1 Map Filters NONE Filters NONE Steam 1 RUN: 672a2338-f151-4cef-9eea-46d6cde6542f